Cogmind - Beta 15 @@@ ROGUE MODE // 2025.10.14 @ 04:38:45 Player: NQH Result: Destroyed by Y-45 Defender with Heavy Assault Rifle Performance ------------- Evolutions (1) 500 Regions Visited (3) 600 Robots Destroyed (20) 100 Value Destroyed (342) 342 Prototype IDs (1) 20 Alien Tech Used (0) 0 Bonus (0) 0 TOTAL SCORE: 1562 Bonus ------- None Cogmind --------- Core Integrity 0/400 Matter 300/300 Energy 71/100 System Corruption 2% Temperature Cool (16) Movement Flying (115) Ox1 Location -9/Materials Parts ------- > --- POWER (1) -------- (None) > --- PROPULSION (2) --- VTOL Module > --- UTILITY (4) ------ Small Storage Unit Visual Processing Unit > --- WEAPON (2) ------- Makeshift Hammer > --- INVENTORY (8) ---- Heavy Ion Engine VTOL Module Medium Matter Pod (100) Peak State ------------ > --- POWER ------------ (None) > --- PROPULSION ------- VTOL Module VTOL Module > --- UTILITY ---------- Small Storage Unit Visual Processing Unit > --- WEAPON ----------- Makeshift Hammer > --- INVENTORY -------- Medium Matter Pod [Rating: 11] Favorites ----------- Power Ion Engine Engine Ion Engine Propulsion Compact Wheel Wheel Compact Wheel Flight Unit VTOL Module Utility Small Storage Unit Storage Small Storage Unit Processor Visual Processing Unit Weapon Makeshift Hammer Energy Gun Medium Laser Impact Weapon Makeshift Hammer Build | -11 -10 -10 -9 ------- Run | Yrd Mat Min Mat Slots Evolved 2 | . . . 2 Power . | . . . . Propulsion . | . . . . Utility 2 | . . . 2 Weapon . | . . . . Parts Attached 13 | 7 . 3 3 Power 1 | 1 . . . Engine 1 | 1 . . . Core . | . . . . Reactor . | . . . . Propulsion 6 | 2 . 2 2 Treads . | . . . . Leg . | . . . . Wheel 3 | 2 . 1 . Hover . | . . . . Flight 3 | . . 1 2 Utility 2 | 1 . . 1 Device . | . . . . Storage 1 | 1 . . . Processor 1 | . . . 1 Hackware . | . . . . Protection . | . . . . Artifact . | . . . . Weapon 4 | 3 . 1 . Energy Gun 3 | 3 . . . Energy Cannon . | . . . . Ballistic Gun . | . . . . Ballistic Cannon . | . . . . Launcher . | . . . . Special Weapon . | . . . . Impact Weapon 1 | . . 1 . Slashing Weapon . | . . . . Piercing Weapon . | . . . . Special Melee Weapon . | . . . . Unidentified Prototypes 1 | . . . 1 Parts Lost 6 | . 2 . 4 Power 2 | . 1 . 1 Propulsion 4 | . 1 . 3 Utility . | . . . . Weapon . | . . . . Highest Loss Streak 2 | . 2 . 2 To Critical Strikes . | . . . . Average Backups 1 | . . 1 1 Power . | . . . . Propulsion . | . . . . Utility . | . . 1 1 Weapon . | . . . . Tool/Special . | . . . . Unused Backups 3 | . . . 3 Power 1 | . . . 1 Propulsion 1 | . . . 1 Utility 1 | . . . 1 Weapon . | . . . . Tool/Special . | . . . . Average Slot Usage (%) 39 | . 52 39 33 Engine 1 | . 12 . . Wheel 13 | . 25 15 1 Flight 1 | . . . 6 Storage 13 | . 14 14 11 Impact Weapon 9 | . . 10 11 Peak Build Rating 11 | 4 4 7 11 Average Rating 5 | 2 3 5 7 On Entrance 3 | . 4 2 7 Naked Turns . | . . . . Heaviest Build 10 | 10 10 8 8 Greatest Support 32 | 26 26 32 32 Greatest Overweight (x) 2 | . . . 2 Average Overweight (x) . | . . . 1 Largest Inventory Capacity 8 | 8 8 8 8 Average Capacity 7 | 5 8 8 8 Most Carried 3 | 2 1 2 3 Average Carried 1 | . . 1 1 Final Capacity 8 | 8 8 8 8 Final Carried 3 | . 1 1 3 Class Distribution -------------------- 93% | Mutant 6% | Sprinter Dominant Class ---------------- Mutant | -10/Materials Mutant | -10/Mines Mutant | -9/Materials Resources | -11 -10 -10 -9 ----------- Run | Yrd Mat Min Mat Matter Collected 426 | 254 . 132 40 Remotely . | . . . . Salvage Created 742 | . . 322 420 Parts 18 | . . 6 12 Haulers Intercepted . | . . . . Recyclers Shooed 1 | . . 1 . Parts Field Recycled . | . . . . Retrieved Matter . | . . . . Parts Self-Destructed . | . . . . Prevented . | . . . . Kills | -11 -10 -10 -9 ------- Run | Yrd Mat Min Mat Combat Hostiles Destroyed 6 | . . 3 3 Melee 3 | . . 2 1 Classes Destroyed 8 | . . 4 4 Worker 2 | . . 2 . Builder 1 | . . . 1 Tunneler 2 | . . 2 . Recycler 4 | . . 2 2 Operator 2 | . . . 2 Swarmer 3 | . . 3 . Grunt 3 | . . . 3 Sentry 3 | . . . 3 Best Kill Streak 4 | . . 4 2 Combat Bots Only 3 | . . 3 2 Max Kills in Single Turn 3 | . . 1 3 Gunslinging . | . . . . Exploded . | . . . . Melee 1 | . . 1 1 Uniques/NPCs Destroyed . | . . . . Combat | -11 -10 -10 -9 -------- Run | Yrd Mat Min Mat Hostile Shots Fired 72 | . 43 8 21 Missed 20 | . 10 2 8 Hits 52 | . 33 6 13 Projectile 52 | . 33 6 13 Critical Strikes 1 | . . . 1 Damage Taken 889 | . 266 49 574 Core 533 | . 125 7 401 Absorbed by Shields . | . . . . Core Remaining (%) 73 | 100 . 47 . Volleys Fired . | . . . . Largest . | . . . . Hottest . | . . . . Shots Fired . | . . . . Gun . | . . . . Cannon . | . . . . Launcher . | . . . . Special . | . . . . Kinetic . | . . . . Thermal . | . . . . Explosive . | . . . . Electromagnetic . | . . . . Robot Hit Streak . | . . . . Robot Miss Streak . | . . . . Penetration Max . | . . . . Secondary Targets . | . . . . Shots Hit Robots 20 | . . 10 10 Core Hits 8 | . . 1 7 Critical Kills 1 | . . . 1 Critical Parts Destroyed 4 | . . 2 2 Critical Strikes 5 | . . 2 3 Smash 5 | . . 2 3 Melee Attacks 51 | . . 27 24 Impact 51 | . . 27 24 Slashing . | . . . . Piercing . | . . . . Sneak Attacks 10 | . . 7 3 Combat Hostiles . | . . . . Follow-up Attacks . | . . . . Damage Inflicted 1802 | . 1 869 932 Guns . | . . . . Cannons . | . . . . Explosions 398 | . . . 398 Melee 1403 | . . 869 534 Ramming 1 | . 1 . . Kinetic . | . . . . Thermal . | . . . . Explosive 363 | . . . 363 Electromagnetic 35 | . . . 35 Impact 1403 | . . 869 534 Slashing . | . . . . Piercing . | . . . . Highest Corruption 2 | . . . 2 Average Corruption 2 | . . . 2 Corruption Purged . | . . . . Corruption Blocked . | . . . . Effects 4 | . . . 4 Message Errors 2 | . . . 2 Energy Discharges 1 | . . . 1 Data Loss (minor) 1 | . . . 1 Overload Shots . | . . . . Overflow Damage 940 | . . 619 321 Projectiles 30 | . . 30 . Explosions 104 | . . . 104 Melee 806 | . . 589 217 Knockbacks 7 | . . 3 4 Impact 5 | . . 2 3 Kinetic . | . . . . Secondary 2 | . . 1 1 Self-Inflicted Damage 395 | . . . 395 Shots 5 | . . . 5 Rammed 1 | . 1 . . Targets Rammed 1 | . 1 . . Kicked . | . . . . Crushed . | . . . . Highest Temperature 4 | . . . 4 Average Temperature 4 | . . . 4 Received Heat Transfer 84 | . . . 84 Siege Activations . | . . . . Martial Activations . | . . . . Shielding Activations . | . . . . Robots Disrupted . | . . . . Combat Hostiles . | . . . . Robots Corrupted 10 | . . 5 5 Combat Hostiles 3 | . . 1 2 Parts Fried 14 | . . 7 7 Impact Corruptions 28 | . . 18 10 Robots Melted . | . . . . Combat Hostiles . | . . . . Parts Melted . | . . . . Heat Transferred . | . . . . Parts Sabotaged . | . . . . Parts Stolen . | . . . . Parts Stripped . | . . . . Power Chain Reactions . | . . . . Alert | -11 -10 -10 -9 ------- Run | Yrd Mat Min Mat Maximum Alert Level . | . . . . Low Security (%) 100 | 100 100 100 100 Level 1 . | . . . . Level 2 . | . . . . Level 3 . | . . . . Level 4 . | . . . . Level 5 . | . . . . High Security . | . . . . Max Security . | . . . . Peak Influence 108 | . 15 81 108 Initial 19 | . . . 19 Average 17 | . . 8 55 Influence Increases 427 | . 15 126 286 Destroy 0b10 Robot/C 120 | . . 60 60 Destroy 0b10 Robot/NC 55 | . . 30 25 Destroy Leader 40 | . . 10 30 Allied During Kill 11 | . . 11 . Disable Machine 150 | . . 15 135 Destroy Structure 36 | . . . 36 Lose Combat Pursuer 15 | . 15 . . Influence Decreases 361 | . 15 75 271 Entered New Map 32 | . . . 32 Time Decay 185 | . 10 75 100 Lost Part 45 | . 5 . 40 Purge Threat 99 | . . . 99 Squads Dispatched 4 | . . . 4 Investigation 2 | . . . 2 Extermination . | . . . . Reinforcement 2 | . . . 2 Assault . | . . . . Garrison . | . . . . Intercept . | . . . . Searches Triggered . | . . . . Construction Impeded . | . . . . Haulers Reinforced . | . . . . Active Scanning Responses . | . . . . Cargo Convoy Interrupts . | . . . . Stealth | -11 -10 -10 -9 --------- Run | Yrd Mat Min Mat Distress Signals . | . . . . Communications Jammed . | . . . . Distress Signals . | . . . . Times Spotted 15 | . 5 3 7 Peak Tracking Total 5 | . 4 3 5 Tactical Retreats 1 | . 1 . . Traps | -11 -10 -10 -9 ------- Run | Yrd Mat Min Mat Traps Triggered 1 | . . . 1 Indirectly . | . . . . Trap Hack Attempts . | . . . . Triggered . | . . . . Disarmed . | . . . . Reprogrammed . | . . . . Reused . | . . . . Traps Extracted . | . . . . Installed . | . . . . Triggered . | . . . . Machines | -11 -10 -10 -9 ---------- Run | Yrd Mat Min Mat Machines Disabled 10 | . . 1 9 Max in Single Turn 2 | . . 1 2 Machines Repaired . | . . . . Machines Dismantled . | . . . . Machines Sabotaged . | . . . . Overloaded Fab Kills . | . . . . Hacking | -11 -10 -10 -9 --------- Run | Yrd Mat Min Mat Machines Accessed 2 | . . . 2 Terminals 2 | . . . 2 Fabricators . | . . . . Repair Stations . | . . . . Recycling Units . | . . . . Scanalyzers . | . . . . Garrison Access . | . . . . Total Hacks 5 | . . . 5 Successful 3 | . . . 3 Failed 2 | . . . 2 Catastrophic . | . . . . Database Lockouts . | . . . . Manual 5 | . . . 5 Terminals 5 | . . . 5 Fabricators . | . . . . Repair Stations . | . . . . Recycling Units . | . . . . Scanalyzers . | . . . . Garrison Access . | . . . . Terminal Hacks 1 | . . . 1 Unreport Threat 1 | . . . 1 Fabricator Hacks . | . . . . Repair Station Hacks . | . . . . Recycling Unit Hacks . | . . . . Scanalyzer . | . . . . Garrison Access Hacks . | . . . . Unauthorized Hacks 2 | . . . 2 Terminals 2 | . . . 2 Skim 2 | . . . 2 Fabricators . | . . . . Repair Stations . | . . . . Recycling Units . | . . . . Scanalyzers . | . . . . Garrison Access . | . . . . Data Cores Recovered . | . . . . Used . | . . . . Hacking Detections 1 | . . . 1 Full Trace Events 1 | . . . 1 Feedback Events . | . . . . Feedback Blocked . | . . . . Robot Schematics Acquired . | . . . . Robots Built . | . . . . Authchips . | . . . . Time . | . . . . Total Robot Build Rating . | . . . . Part Schematics Acquired . | . . . . Parts Built . | . . . . Authchips . | . . . . Time . | . . . . Total Part Build Rating . | . . . . Parts Repaired . | . . . . Time . | . . . . Parts Recycled . | . . . . Recycled Matter . | . . . . Retrieved Matter . | . . . . Retrieved Components . | . . . . Parts Scanalyzed . | . . . . Part Schematics Acquired . | . . . . Parts Damaged . | . . . . Bothacking | -11 -10 -10 -9 ------------ Run | Yrd Mat Min Mat Used RIF Installer . | . . . . Robots Hacked . | . . . . Non-combat . | . . . . Combat . | . . . . Robot Hacks Applied . | . . . . Relay Couplers Released . | . . . . Fabnet Peak Effective % . | . . . . Robots Rewired . | . . . . Allies Hacked . | . . . . Hacks Repelled . | . . . . Allies | -11 -10 -10 -9 -------- Run | Yrd Mat Min Mat Total Allies 3 | . . 3 . Largest Group 3 | . . 3 3 Highest-Rated Group 40 | . . 40 40 Highest-Rated Ally 16 | . . 16 16 Total Orders . | . . . . Ally Attacks 1 | . . 1 . Total Damage . | . . . . Kills . | . . . . Allies Corrupted . | . . . . Allies Melted . | . . . . Intel | -11 -10 -10 -9 ------- Run | Yrd Mat Min Mat Active Infowar (turns) 79 | . . . 79 Optics 79 | . . . 79 Robot Analysis Total . | . . . . Derelict Logs Recovered 2 | . . 2 . Drone Launches . | . . . . Drone Recoveries . | . . . . Exploration | -11 -10 -10 -9 ------------- Run | Yrd Mat Min Mat Turns Passed 1093 | 54 87 720 232 Spaces Moved 945 | 46 91 649 159 Core 84 | 2 . . 82 Treads . | . . . . Legs . | . . . . Wheels 798 | 44 91 649 14 Hover . | . . . . Flight 63 | . . . 63 Fastest Speed 32 | 50 90 100 32 Average Speed 98 | 87 91 100 99 Slowest Speed 150 | 90 100 100 150 Overloaded Moves . | . . . . Propulsion Burnouts . | . . . . Robots Hopped . | . . . . Potential Cave-ins . | . . . . Cave-ins Triggered . | . . . . Exploration Rate (%) 35 | 4 25 97 17 Regions Visited 3 Branch Regions 1 Pre-discovered Areas 1 | . . 1 . Known Exits Taken . | . . . . Unknown Exits Taken 3 | 1 1 1 . Scrap Searched . | . . . . Spaces Dug 2 | . . . 2 Terrain Destroyed 42 | . . . 42 Melee 2 | . . . 2 Projectile . | . . . . AOE 40 | . . . 40 Terrain Rammed . | . . . . Walls Destroyed . | . . . . Machines Disabled . | . . . . Actions | -11 -10 -10 -9 --------- Run | Yrd Mat Min Mat Total 1051 | 58 94 692 207 Wait 32 | . 2 12 18 Move 942 | 45 90 648 159 Hop . | . . . . Pick Up 3 | . 1 . 2 Fast Attach 14 | 7 . 3 4 Attach . | . . . . Detach 4 | 3 . 1 . Swap . | . . . . Drop 4 | 3 . 1 . Fire . | . . . . Melee 51 | . . 27 24 Ram 1 | . 1 . . Kick . | . . . . Crush . | . . . . Escape Stasis . | . . . . Rewire . | . . . . Trap . | . . . . Miscellaneous . | . . . . Route ------- -11/Scrapyard -10/Materials -10/Mines -9/Materials History --------- Turn | Location | Event 10 | -11/Scrapyard | Discovered new exit (range 16) 55 | -11/Scrapyard | Entered Materials 127 | -10/Materials | Discovered new exit (range 16) 142 | -10/Materials | Entered Mines 174 | -10/Mines | Assisted by bots powering up and referring to "LRC-V3" 306 | -10/Mines | Build established: Mutant 330 | -10/Mines | A weapon hastily lodged in a ceiling crevice suddenly fell to the ground 505 | -10/Mines | Discovered new exit (range 13) 617 | -10/Mines | Learned Materials terminal intel 771 | -10/Mines | Core integrity fell below 50% 862 | -10/Mines | Entered Materials 862 | -9/Materials | Accompanied by 3 allies 862 | -9/Materials | Evolved 2 slots: Utility x2 863 | -9/Materials | Loaded intel: 12 terminal locations 971 | -9/Materials | Core integrity fell below 50% 1060 | -9/Materials | Core integrity fell below 20% 1094 | -9/Materials | Destroyed by Y-45 Defender with Heavy Assault Rifle Last Messages --------------- 01050_ Acquired 40 matter. 01060_ Y-45 Defender destroyed. 01067_ Terminal unresponsive. 01067_ Terminal disabled. 01079_ Triggered Alarm Trap. 01079_ An alarm sounds. 01079_ ALERT: Alarm triggered, dispatching investigation squad. 01088_ System corrupted: Energy discharge (-36). 01088_ Destroyed Heat Sink. 01088_ G-34 Mercenary system corrupted by crushing effect. 01090_ VTOL Module destroyed. 01092_ G-34 Mercenary knocked back. 01092_ Destroyed Hover Unit. 01092_ O-16 Technician system corrupted by crushing effect. 01093_ O-16 Technician system terminally corrupted. 01093_ Hacking Suite fried. 01093_ Hover Unit fried. Map ----- +----------------------------------------------------+ | ???????????# #????????? ??? ????????? | | ???????????# #????????? #???????????? | | ???????????# ##???????" ????????????? | | ???????????# +???????" ????????????? | | ???????????# ##???????" ????????????? | | ?????????### #???????? ????????????? | | ?????????#"# #???????? !????????????? | | ?????????## #???????? ????????????? | | ??????????## #########"#???? ??????? | | ???????????# #???"""" ?"??? | | ???????????#### ##### #???"""" ""?? | | ?????????????##+##### #?? """" """" | | ?????????????# # #? | | ?????????????# # ## ???? | | ?????????????# # #??????? | | ?????????????# ! # ???????? | | ?????????????# !*! + #????????????? | | ?????????????# !*! # #????????????? | | ??????????########### ##???????????? | | ??????????# ##### = #???????????? | | ??????????+ %[ %=#???????????? | | ??????????# % ! =#???????????? | | ??????????# Yg ##### #???????????? | | ????######## ##???######???????????? | | ????# # ########??????????????? | | ????# " /@ + #??????????????? | | ????# " " # # #??????????????? | | ????# # #?? #??????????????? | | ????# ####???? #??????????????? | | ????# #?????????#??????????????? | | ????########????????????????????????? | | ????????????????????????????????????? | | ????????????????????????????????????? | | ????????????????????????????????????? | | | | | | | | | | | | | | | | | | | | | | | | | | | | | | | | | +----------------------------------------------------+ Best States ------------- Heat Dissipation 28 Energy Generation 10 Energy Capacity 250 Matter Stores 300 Matter Capacity 300 Sight Range 18 Terrain Scan Density 10 Evasion (%) 63 Item Schematics ----------------- None Robot Schematics ------------------ None Fabricated ------------ Nothing Repaired ---------- Nothing Alien Tech Used ----------------- None Achievements -------------- None Challenges ------------ None Game ------ Seed GravitonRestorationBlade Manual? 0 Play Time 00:08:02 Cumulative 32.7 hours Start 2025.10.14 @ 04:32:42 End 2025.10.14 @ 04:38:45 Sessions 1 Manual Loads 0 Difficulty Rogue Special Mode None Game No. 132 Rogue 132 Adventurer 0 Explorer 0 Win Type - Total 0 Types 0/0/0/0/0/0/0/0/0/0 Lore% 11 Gallery% 31 Achievement% 28 Wizard Run 0 Options --------- Layout 1 ASCII 0 Keyboard 1 Movement Vi Keybinds 0 Fullscreen 1 Font 16/SmallcapsGlow Map View 55x38 Zoom Use 0% Tactical HUD 1 Map Filters NONE Filters NONE Steam 1 RUN: 1864bde2-59e7-4893-8b68-fab5de37643c